[Event "Titled Tuesday Blitz November 08 Late 2022"]
[White "Harish, Neeraj"]
[Black "Sanchez, Robert"]
[WhiteFideId "30958130"]
[BlackFideId "2034360"]
[WhiteElo "1815"]
[BlackElo "2270"]
[Result "1-0"]
[Round "11"]
[TimeControl "180+1"]
[Date "2022.11.09"]
[WhiteClock "0:01:40"]
[BlackClock "0:02:27"]

1. e4 {[%clk 0:03:00]}  d5 {[%clk 0:02:59]} 2. exd5 {[%clk 0:02:59]}  Qxd5 {[%clk 0:03:00]} 3. Nc3 {[%clk 0:02:55]}  Qe6+ {[%clk 0:03:00]} 4. Be2 {[%clk 0:02:52]}  Qg6 {[%clk 0:03:00]} 5. Bf3 {[%clk 0:02:48]}  Nc6 {[%clk 0:03:00]} 6. Nge2 {[%clk 0:02:46]}  e5 {[%clk 0:03:00]} 7. O-O {[%clk 0:02:41]}  Bd7 {[%clk 0:03:00]} 8. d4 {[%clk 0:02:38]}  exd4 {[%clk 0:03:00]} 9. Nxd4 {[%clk 0:02:35]}  O-O-O {[%clk 0:03:00]} 10. Be3 {[%clk 0:02:28]}  Nf6 {[%clk 0:02:59]} 11. Qe2 {[%clk 0:02:24]}  Ne5 {[%clk 0:02:47]} 12. Ndb5 {[%clk 0:02:07]}  a6 {[%clk 0:02:45]} 13. Nd4 {[%clk 0:01:47]}  Bd6 {[%clk 0:02:34]} 14. Rab1 {[%clk 0:01:41]}  Nxf3+ {[%clk 0:02:27]} 15. Qxf3 {[%clk 0:01:40]}  Bg4 {[%clk 0:02:27]} 1-0


[Site "https://www.chess.com"]

[Event "Titled Tuesday Blitz November 08 Late 2022"]
[White "Haszon, David"]
[Black "Aghasiyev, Kamal"]
[WhiteFideId "733610"]
[BlackFideId "13402854"]
[WhiteElo "2211"]
[BlackElo "2341"]
[Result "0-1"]
[Round "11"]
[TimeControl "180+1"]
[Date "2022.11.09"]
[WhiteClock "0:02:15"]
[BlackClock "0:02:40"]

1. d4 {[%clk 0:02:58]}  d5 {[%clk 0:02:57]} 2. Bf4 {[%clk 0:02:54]}  Nf6 {[%clk 0:02:51]} 3. Nf3 {[%clk 0:02:53]}  e6 {[%clk 0:02:51]} 4. e3 {[%clk 0:02:53]}  b6 {[%clk 0:02:51]} 5. Bd3 {[%clk 0:02:47]}  Bb7 {[%clk 0:02:52]} 6. c3 {[%clk 0:02:47]}  Bd6 {[%clk 0:02:51]} 7. Bg3 {[%clk 0:02:46]}  O-O {[%clk 0:02:49]} 8. Nbd2 {[%clk 0:02:45]}  c5 {[%clk 0:02:49]} 9. e4 {[%clk 0:02:42]}  dxe4 {[%clk 0:02:47]} 10. Nxe4 {[%clk 0:02:25]}  Bxe4 {[%clk 0:02:45]} 11. dxc5 {[%clk 0:02:18]}  Bxg3 {[%clk 0:02:41]} 12. Bxe4 {[%clk 0:02:16]}  Bxf2+ {[%clk 0:02:41]} 13. Kxf2 {[%clk 0:02:15]}  Nxe4+ {[%clk 0:02:41]} 14. Ke3 {[%clk 0:02:15]}  Nxc5 {[%clk 0:02:40]} 0-1


[Site "https://www.chess.com"]

[Event "Titled Tuesday Blitz November 08 Late 2022"]
[White "Hryzlova, Sofiia"]
[Black "Martic, Ivan"]
[WhiteFideId "14174669"]
[BlackFideId "929301"]
[WhiteElo "1992"]
[BlackElo "2355"]
[Result "1-0"]
[Round "11"]
[TimeControl "180+1"]
[Date "2022.11.09"]
[WhiteClock "0:00:19"]
[BlackClock "0:00:10"]

1. e4 {[%clk 0:03:00]}  c5 {[%clk 0:03:00]} 2. Nf3 {[%clk 0:03:01]}  e6 {[%clk 0:03:00]} 3. d4 {[%clk 0:03:02]}  cxd4 {[%clk 0:03:00]} 4. Nxd4 {[%clk 0:03:02]}  a6 {[%clk 0:03:01]} 5. c4 {[%clk 0:03:02]}  Nf6 {[%clk 0:02:58]} 6. Nc3 {[%clk 0:03:01]}  d6 {[%clk 0:02:58]} 7. Be2 {[%clk 0:02:59]}  Be7 {[%clk 0:02:57]} 8. Be3 {[%clk 0:02:59]}  Qc7 {[%clk 0:02:48]} 9. f3 {[%clk 0:02:59]}  b6 {[%clk 0:02:47]} 10. Rc1 {[%clk 0:02:58]}  Bb7 {[%clk 0:02:47]} 11. g4 {[%clk 0:02:57]}  h6 {[%clk 0:02:47]} 12. a3 {[%clk 0:02:53]}  g5 {[%clk 0:02:43]} 13. Kd2 {[%clk 0:02:46]}  Nbd7 {[%clk 0:02:41]} 14. Kc2 {[%clk 0:02:46]}  Ne5 {[%clk 0:02:39]} 15. Kb1 {[%clk 0:02:46]}  Rc8 {[%clk 0:02:36]} 16. Qd2 {[%clk 0:02:32]}  Qb8 {[%clk 0:02:35]} 17. Na4 {[%clk 0:02:11]}  Ba8 {[%clk 0:02:31]} 18. Nb3 {[%clk 0:02:07]}  Nfd7 {[%clk 0:02:26]} 19. Rhd1 {[%clk 0:01:55]}  Bc6 {[%clk 0:02:13]} 20. Nc3 {[%clk 0:01:50]}  Rg8 {[%clk 0:02:00]} 21. Nd4 {[%clk 0:01:49]}  Bb7 {[%clk 0:01:58]} 22. b3 {[%clk 0:01:46]}  Ba8 {[%clk 0:01:54]} 23. Kb2 {[%clk 0:01:45]}  Nc5 {[%clk 0:01:49]} 24. h4 {[%clk 0:01:25]}  Bf6 {[%clk 0:01:32]} 25. hxg5 {[%clk 0:00:04]}  hxg5 {[%clk 0:01:33]} 26. Rh1 {[%clk 0:00:04]}  b5 {[%clk 0:01:17]} 27. Rh6 {[%clk 0:00:04]}  Bg7 {[%clk 0:01:12]} 28. Rh7 {[%clk 0:00:04]}  bxc4 {[%clk 0:01:11]} 29. b4 {[%clk 0:00:04]}  Ncd3+ {[%clk 0:01:10]} 30. Bxd3 {[%clk 0:00:05]}  Nxd3+ {[%clk 0:01:10]} 31. Ka2 {[%clk 0:00:06]}  Nxc1+ {[%clk 0:01:10]} 32. Qxc1 {[%clk 0:00:06]}  Bf6 {[%clk 0:00:56]} 33. Rh6 {[%clk 0:00:06]}  Be7 {[%clk 0:00:53]} 34. Qd2 {[%clk 0:00:06]}  Qc7 {[%clk 0:00:38]} 35. Nde2 {[%clk 0:00:06]}  Rd8 {[%clk 0:00:34]} 36. Rh7 {[%clk 0:00:06]}  d5 {[%clk 0:00:33]} 37. exd5 {[%clk 0:00:06]}  Bxd5 {[%clk 0:00:34]} 38. Bd4 {[%clk 0:00:06]}  e5 {[%clk 0:00:27]} 39. Be3 {[%clk 0:00:06]}  Be4 {[%clk 0:00:24]} 40. Qxd8+ {[%clk 0:00:03]}  Qxd8 {[%clk 0:00:22]} 41. fxe4 {[%clk 0:00:03]}  Qd3 {[%clk 0:00:21]} 42. Bc1 {[%clk 0:00:04]}  a5 {[%clk 0:00:17]} 43. bxa5 {[%clk 0:00:03]}  Qc2+ {[%clk 0:00:15]} 44. Bb2 {[%clk 0:00:04]}  Qb3+ {[%clk 0:00:15]} 45. Ka1 {[%clk 0:00:04]}  Bxa3 {[%clk 0:00:16]} 46. Bxa3 {[%clk 0:00:05]}  Qxa3+ {[%clk 0:00:16]} 47. Kb1 {[%clk 0:00:05]}  Qxa5 {[%clk 0:00:16]} 48. Kc2 {[%clk 0:00:05]}  Qb4 {[%clk 0:00:16]} 49. Rh1 {[%clk 0:00:06]}  Qb3+ {[%clk 0:00:15]} 50. Kd2 {[%clk 0:00:06]}  Kd7 {[%clk 0:00:15]} 51. Rb1 {[%clk 0:00:07]}  Qa3 {[%clk 0:00:13]} 52. Rb7+ {[%clk 0:00:07]}  Kc6 {[%clk 0:00:13]} 53. Rc7+ {[%clk 0:00:07]}  Kb6 {[%clk 0:00:12]} 54. Nd5+ {[%clk 0:00:08]}  Ka6 {[%clk 0:00:11]} 55. Rxc4 {[%clk 0:00:06]}  Rd8 {[%clk 0:00:08]} 56. Nc3 {[%clk 0:00:06]}  Qb2+ {[%clk 0:00:07]} 57. Kd3 {[%clk 0:00:06]}  Rxd5+ {[%clk 0:00:06]} 58. exd5 {[%clk 0:00:06]}  Qb8 {[%clk 0:00:03]} 59. Ra4+ {[%clk 0:00:06]}  Kb7 {[%clk 0:00:02]} 60. Rb4+ {[%clk 0:00:07]}  Kc8 {[%clk 0:00:03]} 61. Rxb8+ {[%clk 0:00:08]}  Kxb8 {[%clk 0:00:04]} 62. Ke4 {[%clk 0:00:08]}  Kc7 {[%clk 0:00:04]} 63. Kf5 {[%clk 0:00:09]}  Kd7 {[%clk 0:00:05]} 64. Ne4 {[%clk 0:00:09]}  Ke7 {[%clk 0:00:04]} 65. Kxe5 {[%clk 0:00:10]}  f6+ {[%clk 0:00:04]} 66. Nxf6 {[%clk 0:00:11]}  Kf7 {[%clk 0:00:05]} 67. Ne4 {[%clk 0:00:11]}  Kg6 {[%clk 0:00:06]} 68. Ke6 {[%clk 0:00:12]}  Kh6 {[%clk 0:00:06]} 69. Kf5 {[%clk 0:00:13]}  Kg7 {[%clk 0:00:06]} 70. Nxg5 {[%clk 0:00:14]}  Kh6 {[%clk 0:00:06]} 71. Ne4 {[%clk 0:00:15]}  Kg7 {[%clk 0:00:06]} 72. Ke6 {[%clk 0:00:15]}  Kh6 {[%clk 0:00:07]} 73. d6 {[%clk 0:00:16]}  Kg6 {[%clk 0:00:08]} 74. d7 {[%clk 0:00:16]}  Kh6 {[%clk 0:00:09]} 75. d8=Q {[%clk 0:00:17]}  Kg6 {[%clk 0:00:10]} 76. Qf6+ {[%clk 0:00:17]}  Kh7 {[%clk 0:00:10]} 77. Ng5+ {[%clk 0:00:18]}  Kg8 {[%clk 0:00:10]} 78. Qf7+ {[%clk 0:00:18]}  Kh8 {[%clk 0:00:10]} 79. Qf8# {[%clk 0:00:19]} 1-0


[Site "https://www.chess.com"]

[Event "Titled Tuesday Blitz November 08 Late 2022"]
[White "Jobava, Baadur"]
[Black "Kamsky, Gata"]
[WhiteFideId "13601520"]
[BlackFideId "2000024"]
[WhiteElo "2582"]
[BlackElo "2666"]
[Result "1/2-1/2"]
[Round "11"]
[TimeControl "180+1"]
[Date "2022.11.09"]
[WhiteClock "0:01:26"]
[BlackClock "0:02:05"]

1. b3 {[%clk 0:02:07]}  b6 {[%clk 0:02:46]} 2. e4 {[%clk 0:02:06]}  Bb7 {[%clk 0:02:46]} 3. Bb2 {[%clk 0:02:06]}  e6 {[%clk 0:02:44]} 4. Nc3 {[%clk 0:02:06]}  Nf6 {[%clk 0:02:29]} 5. e5 {[%clk 0:02:04]}  Nd5 {[%clk 0:02:26]} 6. Nxd5 {[%clk 0:02:04]}  Bxd5 {[%clk 0:02:26]} 7. Ne2 {[%clk 0:02:05]}  Qh4 {[%clk 0:02:22]} 8. d4 {[%clk 0:01:53]}  Bb4+ {[%clk 0:02:18]} 9. c3 {[%clk 0:01:51]}  Be7 {[%clk 0:02:17]} 10. c4 {[%clk 0:01:28]}  Bb7 {[%clk 0:02:09]} 11. Nc3 {[%clk 0:01:26]}  Nc6 {[%clk 0:02:05]} 1/2-1/2


[Site "https://www.chess.com"]

[Event "Titled Tuesday Blitz November 08 Late 2022"]
[White "Kaplan, Avi Harrison"]
[Black "Chlpik, Martin"]
[WhiteFideId "30934559"]
[BlackFideId "14923351"]
[WhiteElo "1983"]
[BlackElo "2109"]
[Result "1-0"]
[Round "11"]
[TimeControl "180+1"]
[Date "2022.11.09"]
[WhiteClock "0:00:16"]
[BlackClock "0:00:01"]

1. b4 {[%clk 0:03:00]}  Nf6 {[%clk 0:02:57]} 2. Bb2 {[%clk 0:02:58]}  g6 {[%clk 0:02:57]} 3. Nf3 {[%clk 0:02:56]}  Bg7 {[%clk 0:02:57]} 4. e3 {[%clk 0:02:57]}  O-O {[%clk 0:02:56]} 5. c4 {[%clk 0:02:57]}  d6 {[%clk 0:02:46]} 6. Be2 {[%clk 0:02:55]}  a5 {[%clk 0:02:46]} 7. a3 {[%clk 0:02:54]}  axb4 {[%clk 0:02:44]} 8. axb4 {[%clk 0:02:54]}  Rxa1 {[%clk 0:02:43]} 9. Bxa1 {[%clk 0:02:55]}  e5 {[%clk 0:02:40]} 10. d3 {[%clk 0:02:53]}  h6 {[%clk 0:02:32]} 11. O-O {[%clk 0:02:53]}  Be6 {[%clk 0:02:29]} 12. Nbd2 {[%clk 0:02:53]}  Nbd7 {[%clk 0:02:27]} 13. Qc2 {[%clk 0:02:52]}  c6 {[%clk 0:02:25]} 14. Bc3 {[%clk 0:02:52]}  Qe7 {[%clk 0:02:20]} 15. Ra1 {[%clk 0:02:51]}  Nh5 {[%clk 0:02:10]} 16. Ra7 {[%clk 0:02:44]}  Nb6 {[%clk 0:02:10]} 17. d4 {[%clk 0:02:30]}  exd4 {[%clk 0:02:01]} 18. Bxd4 {[%clk 0:02:26]}  Nc8 {[%clk 0:01:58]} 19. Ra8 {[%clk 0:02:15]}  Bf5 {[%clk 0:01:49]} 20. Qc3 {[%clk 0:02:11]}  Bxd4 {[%clk 0:01:28]} 21. Nxd4 {[%clk 0:02:11]}  Bd7 {[%clk 0:01:23]} 22. Bxh5 {[%clk 0:02:10]}  gxh5 {[%clk 0:01:22]} 23. N2f3 {[%clk 0:01:57]}  Qf6 {[%clk 0:01:15]} 24. g3 {[%clk 0:01:55]}  Bh3 {[%clk 0:01:11]} 25. Nh4 {[%clk 0:01:51]}  Ne7 {[%clk 0:01:08]} 26. Rxf8+ {[%clk 0:01:41]}  Kxf8 {[%clk 0:01:09]} 27. Qa1 {[%clk 0:01:25]}  Ng6 {[%clk 0:01:06]} 28. Qa8+ {[%clk 0:01:23]}  Kg7 {[%clk 0:01:05]} 29. Nxg6 {[%clk 0:01:03]}  Qxg6 {[%clk 0:01:05]} 30. Qa1 {[%clk 0:01:03]}  Kg8 {[%clk 0:00:50]} 31. Qe1 {[%clk 0:00:57]}  Qd3 {[%clk 0:00:40]} 32. c5 {[%clk 0:00:53]}  dxc5 {[%clk 0:00:38]} 33. bxc5 {[%clk 0:00:54]}  Qc4 {[%clk 0:00:33]} 34. Ne2 {[%clk 0:00:44]}  Qxc5 {[%clk 0:00:30]} 35. Nf4 {[%clk 0:00:44]}  Bg4 {[%clk 0:00:28]} 36. Qa1 {[%clk 0:00:41]}  Bf3 {[%clk 0:00:13]} 37. h3 {[%clk 0:00:36]}  Qd6 {[%clk 0:00:11]} 38. Kf1 {[%clk 0:00:15]}  Qd1+ {[%clk 0:00:01]} 39. Qxd1 {[%clk 0:00:15]}  Bxd1 {[%clk 0:00:02]} 40. Ke1 {[%clk 0:00:16]}  Bb3 {[%clk 0:00:01]} 41. Nxh5 {[%clk 0:00:16]} 1-0


[Site "https://www.chess.com"]

[Event "Titled Tuesday Blitz November 08 Late 2022"]
[White "Kleiman, Jake"]
[Black "Ibarra Jerez, Jose Carlos"]
[WhiteFideId "2020041"]
[BlackFideId "2226332"]
[WhiteElo "2545"]
[BlackElo "2638"]
[Result "0-1"]
[Round "11"]
[TimeControl "180+1"]
[Date "2022.11.09"]
[WhiteClock "0:00:08"]
[BlackClock "0:00:06"]

1. e4 {[%clk 0:03:00]}  c5 {[%clk 0:02:59]} 2. c3 {[%clk 0:03:01]}  Nf6 {[%clk 0:02:58]} 3. e5 {[%clk 0:03:01]}  Nd5 {[%clk 0:02:59]} 4. Bc4 {[%clk 0:03:02]}  Nb6 {[%clk 0:02:57]} 5. Bb3 {[%clk 0:03:02]}  g6 {[%clk 0:02:53]} 6. Nf3 {[%clk 0:03:02]}  Bg7 {[%clk 0:02:52]} 7. O-O {[%clk 0:03:03]}  Nc6 {[%clk 0:02:51]} 8. d4 {[%clk 0:03:04]}  cxd4 {[%clk 0:02:52]} 9. cxd4 {[%clk 0:03:04]}  O-O {[%clk 0:02:52]} 10. Qe2 {[%clk 0:03:03]}  d6 {[%clk 0:02:53]} 11. h3 {[%clk 0:03:04]}  dxe5 {[%clk 0:02:41]} 12. dxe5 {[%clk 0:03:05]}  Be6 {[%clk 0:02:41]} 13. Rd1 {[%clk 0:03:02]}  Qc8 {[%clk 0:02:38]} 14. Nc3 {[%clk 0:02:39]}  Bxb3 {[%clk 0:02:34]} 15. axb3 {[%clk 0:02:40]}  Qe6 {[%clk 0:02:34]} 16. Nb5 {[%clk 0:02:28]}  Qxb3 {[%clk 0:02:20]} 17. Be3 {[%clk 0:02:09]}  Qc4 {[%clk 0:02:10]} 18. Qxc4 {[%clk 0:02:07]}  Nxc4 {[%clk 0:02:10]} 19. Bxa7 {[%clk 0:01:50]}  N4xe5 {[%clk 0:02:00]} 20. Nxe5 {[%clk 0:01:38]}  Bxe5 {[%clk 0:01:58]} 21. Rd7 {[%clk 0:01:35]}  Bxb2 {[%clk 0:01:54]} 22. Ra2 {[%clk 0:01:31]}  Be5 {[%clk 0:01:30]} 23. Rxb7 {[%clk 0:01:31]}  Rfd8 {[%clk 0:01:29]} 24. g3 {[%clk 0:01:26]}  Rd1+ {[%clk 0:01:20]} 25. Kg2 {[%clk 0:01:26]}  Rb1 {[%clk 0:01:20]} 26. Ra6 {[%clk 0:00:57]}  Nxa7 {[%clk 0:01:10]} 27. Rbxa7 {[%clk 0:00:49]}  Rxa7 {[%clk 0:01:06]} 28. Nxa7 {[%clk 0:00:50]}  Rb2 {[%clk 0:01:02]} 29. Nc6 {[%clk 0:00:47]}  Bd6 {[%clk 0:01:02]} 30. Ra5 {[%clk 0:00:41]}  e6 {[%clk 0:00:46]} 31. h4 {[%clk 0:00:32]}  Bc7 {[%clk 0:00:45]} 32. Ra3 {[%clk 0:00:28]}  Bb6 {[%clk 0:00:38]} 33. Rf3 {[%clk 0:00:29]}  f5 {[%clk 0:00:30]} 34. Ne5 {[%clk 0:00:25]}  Bd4 {[%clk 0:00:30]} 35. Nc4 {[%clk 0:00:20]}  Ra2 {[%clk 0:00:25]} 36. Ne3 {[%clk 0:00:15]}  e5 {[%clk 0:00:23]} 37. Nd5 {[%clk 0:00:10]}  e4 {[%clk 0:00:20]} 38. Rf4 {[%clk 0:00:11]}  Be5 {[%clk 0:00:18]} 39. h5 {[%clk 0:00:10]}  Bxf4 {[%clk 0:00:18]} 40. Nxf4 {[%clk 0:00:10]}  e3 {[%clk 0:00:16]} 41. Kf3 {[%clk 0:00:05]}  exf2 {[%clk 0:00:15]} 42. Kg2 {[%clk 0:00:06]}  g5 {[%clk 0:00:14]} 43. Nh3 {[%clk 0:00:06]}  h6 {[%clk 0:00:13]} 44. Nxf2 {[%clk 0:00:07]}  Kg7 {[%clk 0:00:14]} 45. Kf3 {[%clk 0:00:07]}  Kf6 {[%clk 0:00:14]} 46. g4 {[%clk 0:00:07]}  Ra3+ {[%clk 0:00:04]} 47. Kg2 {[%clk 0:00:06]}  Ra2 {[%clk 0:00:05]} 48. Kg3 {[%clk 0:00:06]}  f4+ {[%clk 0:00:04]} 49. Kf3 {[%clk 0:00:06]}  Ke5 {[%clk 0:00:04]} 50. Nd3+ {[%clk 0:00:06]}  Kd4 {[%clk 0:00:05]} 51. Nf2 {[%clk 0:00:05]}  Ra3+ {[%clk 0:00:05]} 52. Kg2 {[%clk 0:00:06]}  Ra2 {[%clk 0:00:05]} 53. Kf3 {[%clk 0:00:06]}  Rxf2+ {[%clk 0:00:06]} 54. Kxf2 {[%clk 0:00:07]}  Ke4 {[%clk 0:00:06]} 55. Ke2 {[%clk 0:00:07]}  f3+ {[%clk 0:00:06]} 56. Kf2 {[%clk 0:00:08]} 0-1


[Site "https://www.chess.com"]

[Event "Titled Tuesday Blitz November 08 Late 2022"]
[White "Machidon, Cristi"]
[Black "Forgacs, Attila Jr."]
[WhiteFideId "13904590"]
[BlackFideId "773654"]
[WhiteElo "2333"]
[BlackElo "2168"]
[Result "1-0"]
[Round "11"]
[TimeControl "180+1"]
[Date "2022.11.09"]
[WhiteClock "0:01:37"]
[BlackClock "0:02:08"]

1. c4 {[%clk 0:03:00]}  e5 {[%clk 0:02:59]} 2. Nc3 {[%clk 0:03:00]}  d6 {[%clk 0:03:00]} 3. Nf3 {[%clk 0:02:59]}  g6 {[%clk 0:02:58]} 4. d4 {[%clk 0:02:58]}  Nd7 {[%clk 0:02:58]} 5. e4 {[%clk 0:02:54]}  Bg7 {[%clk 0:02:53]} 6. Bg5 {[%clk 0:02:54]}  Ngf6 {[%clk 0:02:51]} 7. Qd2 {[%clk 0:02:51]}  h6 {[%clk 0:02:51]} 8. Bh4 {[%clk 0:02:48]}  g5 {[%clk 0:02:44]} 9. Bg3 {[%clk 0:02:47]}  Nh5 {[%clk 0:02:45]} 10. O-O-O {[%clk 0:02:36]}  O-O {[%clk 0:02:40]} 11. Be2 {[%clk 0:02:28]}  Nxg3 {[%clk 0:02:39]} 12. hxg3 {[%clk 0:02:27]}  exd4 {[%clk 0:02:36]} 13. Nxd4 {[%clk 0:02:27]}  Ne5 {[%clk 0:02:35]} 14. f4 {[%clk 0:02:25]}  gxf4 {[%clk 0:02:34]} 15. gxf4 {[%clk 0:02:26]}  Ng4 {[%clk 0:02:34]} 16. Rdf1 {[%clk 0:01:44]}  f5 {[%clk 0:02:24]} 17. Nxf5 {[%clk 0:01:37]}  Bxf5 {[%clk 0:02:22]} 18. exf5 {[%clk 0:01:38]}  Nf6 {[%clk 0:02:14]} 19. g4 {[%clk 0:01:38]}  Qe7 {[%clk 0:02:12]} 20. g5 {[%clk 0:01:37]}  hxg5 {[%clk 0:02:10]} 21. fxg5 {[%clk 0:01:38]}  Ne4 {[%clk 0:02:09]} 22. Qd5+ {[%clk 0:01:38]}  Rf7 {[%clk 0:02:08]} 23. Nxe4 {[%clk 0:01:37]} 1-0


[Site "https://www.chess.com"]

[Event "Titled Tuesday Blitz November 08 Late 2022"]
[White "Makaraci, Tunahan"]
[Black "Makridis, Dimitrios"]
[WhiteFideId "6356559"]
[BlackFideId "25864475"]
[WhiteElo "2161"]
[BlackElo "2272"]
[Result "0-1"]
[Round "11"]
[TimeControl "180+1"]
[Date "2022.11.09"]
[WhiteClock "0:00:05"]
[BlackClock "0:00:06"]

1. e4 {[%clk 0:03:00]}  c5 {[%clk 0:02:57]} 2. c3 {[%clk 0:03:01]}  Nf6 {[%clk 0:02:57]} 3. e5 {[%clk 0:03:01]}  Nd5 {[%clk 0:02:58]} 4. d4 {[%clk 0:03:01]}  cxd4 {[%clk 0:02:59]} 5. cxd4 {[%clk 0:03:02]}  d6 {[%clk 0:02:59]} 6. Nf3 {[%clk 0:03:03]}  Nc6 {[%clk 0:02:59]} 7. Bc4 {[%clk 0:03:03]}  e6 {[%clk 0:02:59]} 8. O-O {[%clk 0:03:03]}  Be7 {[%clk 0:03:00]} 9. Qe2 {[%clk 0:03:03]}  O-O {[%clk 0:03:00]} 10. Re1 {[%clk 0:03:03]}  a6 {[%clk 0:02:51]} 11. Nc3 {[%clk 0:02:54]}  Nxc3 {[%clk 0:02:47]} 12. bxc3 {[%clk 0:02:55]}  dxe5 {[%clk 0:02:48]} 13. dxe5 {[%clk 0:02:55]}  Qc7 {[%clk 0:02:42]} 14. Bd3 {[%clk 0:02:51]}  Rd8 {[%clk 0:02:40]} 15. Qe4 {[%clk 0:02:45]}  g6 {[%clk 0:02:39]} 16. Bh6 {[%clk 0:02:38]}  b5 {[%clk 0:02:36]} 17. Rad1 {[%clk 0:02:37]}  Bb7 {[%clk 0:02:35]} 18. Qf4 {[%clk 0:02:38]}  b4 {[%clk 0:02:09]} 19. Ng5 {[%clk 0:02:32]}  Bf8 {[%clk 0:01:56]} 20. Bxf8 {[%clk 0:01:26]}  Rxf8 {[%clk 0:01:57]} 21. Ne4 {[%clk 0:01:26]}  bxc3 {[%clk 0:01:44]} 22. Nf6+ {[%clk 0:01:06]}  Kg7 {[%clk 0:01:43]} 23. Ng4 {[%clk 0:01:06]}  Rg8 {[%clk 0:01:03]} 24. Bxg6 {[%clk 0:00:39]}  Kf8 {[%clk 0:00:52]} 25. Bxh7 {[%clk 0:00:34]}  Rg7 {[%clk 0:00:51]} 26. Bc2 {[%clk 0:00:30]}  Ne7 {[%clk 0:00:45]} 27. Qh6 {[%clk 0:00:24]}  Ng8 {[%clk 0:00:41]} 28. Qf4 {[%clk 0:00:19]}  Ne7 {[%clk 0:00:38]} 29. h4 {[%clk 0:00:10]}  Qc6 {[%clk 0:00:25]} 30. Be4 {[%clk 0:00:09]}  Qc4 {[%clk 0:00:26]} 31. Nf6 {[%clk 0:00:06]}  c2 {[%clk 0:00:24]} 32. Rc1 {[%clk 0:00:02]}  Ng6 {[%clk 0:00:15]} 33. Qh6 {[%clk 0:00:02]}  Bxe4 {[%clk 0:00:09]} 34. Rxe4 {[%clk 0:00:03]}  Qxa2 {[%clk 0:00:09]} 35. Re2 {[%clk 0:00:02]}  Rc8 {[%clk 0:00:09]} 36. h5 {[%clk 0:00:03]}  Ne7 {[%clk 0:00:08]} 37. Qh8+ {[%clk 0:00:03]}  Ng8 {[%clk 0:00:08]} 38. Nxg8 {[%clk 0:00:02]}  Rxg8 {[%clk 0:00:08]} 39. Qh6+ {[%clk 0:00:03]}  Ke8 {[%clk 0:00:08]} 40. Qd2 {[%clk 0:00:03]}  Rd8 {[%clk 0:00:06]} 41. Qxc2 {[%clk 0:00:02]}  Qd5 {[%clk 0:00:07]} 42. f3 {[%clk 0:00:02]}  Kf8 {[%clk 0:00:05]} 43. Qc3 {[%clk 0:00:01]}  Kg7 {[%clk 0:00:06]} 44. Qa3 {[%clk 0:00:01]}  Kh7 {[%clk 0:00:06]} 45. Qb2 {[%clk 0:00:02]}  Rg7 {[%clk 0:00:06]} 46. Qc2+ {[%clk 0:00:03]}  Kh8 {[%clk 0:00:07]} 47. h6 {[%clk 0:00:03]}  Rg6 {[%clk 0:00:07]} 48. Qc5 {[%clk 0:00:02]}  Qxf3 {[%clk 0:00:06]} 49. Qf2 {[%clk 0:00:01]}  Qh5 {[%clk 0:00:06]} 50. Qxf7 {[%clk 0:00:01]}  Rxg2+ {[%clk 0:00:06]} 51. Rxg2 {[%clk 0:00:02]}  Qxf7 {[%clk 0:00:06]} 52. Rg7 {[%clk 0:00:02]}  Qf5 {[%clk 0:00:06]} 53. Rcc7 {[%clk 0:00:02]}  Rd1+ {[%clk 0:00:05]} 54. Kg2 {[%clk 0:00:02]}  Qf1+ {[%clk 0:00:05]} 55. Kg3 {[%clk 0:00:03]}  Rd3+ {[%clk 0:00:05]} 56. Kh4 {[%clk 0:00:04]}  Qf4+ {[%clk 0:00:06]} 57. Kh5 {[%clk 0:00:04]}  Rh3+ {[%clk 0:00:06]} 58. Kg6 {[%clk 0:00:05]}  Rxh6# {[%clk 0:00:06]} 0-1


[Site "https://www.chess.com"]